Workbook

Sheet Лист1
A1: Рацион: Основное организованное меню с 7-11 лет | E1: День: | F1: 1 | I1: Сезон: | K1: (Все)
D2: Неделя: | G2: 1 | I2: Возраст: | K2: Основное организованное меню с 7-11 лет
A3: № рец. | B3: Прием пищи, наименование блюда | D3: Масса порции | E3: Пищевые вещества (г) | H3: Энерге- тическая ценность (ккал) | I3: Витамины (мг) | M3: Минеральные вещества (мг)
E4: Б | F4: Ж | G4: У | I4: B1 | J4: C | K4: A, мкг | L4: E | M4: Ca | N4: P | O4: Mg | P4: Fe
A5: 1 | B5: 2 | D5: 3 | E5: 4 | F5: 5 | G5: 6 | H5: 7 | I5: 8 | J5: 9 | K5: 10 | L5: 11 | M5: 12 | N5: 13 | O5: 14 | P5: 15
A6: завтрак
A7: 9 | B7: Огурцы в нарезке | D7: 60 | E7: 0.42 | F7: 0.06 | G7: 1.14 | H7: 6.60 | I7: 0.02 | J7: 2.30 | L7: 1.38 | M7: 12.29 | N7: 22.35 | O7: 7.01 | P7: 0.31
A8: 212 | B8: Макаронные изделия отварные | D8: 160 | E8: 5.86 | F8: 4.24 | G8: 38.71 | H8: 221.77 | K8: 22.50 | L8: 0.05 | M8: 1.20 | O8: 0.03 | P8: 0.01
A9: 602 | B9: Кекс "Столичный" | D9: 50 | E9: 2.00 | F9: 9.86 | G9: 26.66 | H9: 203.33 | I9: 0.02 | M9: 12.00 | P9: 0.53
A10: 285 | B10: Чай с лимоном и сахаром | D10: 200 | E10: 0.14 | F10: 0.03 | G10: 10.22 | H10: 41.63 | J10: 2.80 | K10: 0.14 | L10: 0.01 | M10: 3.10 | O10: 0.84 | P10: 0.07
A11: 16 | B11: Хлеб пшеничный | D11: 30 | E11: 2.88 | F11: 0.24 | G11: 14.76 | H11: 70.50 | I11: 0.02 | M11: 4.00 | P11: 0.22
A12: итого за завтрак | D12: =SUM(D7:D11) -> 500 | E12: =SUM(E7:E11) -> 11 | F12: 14 | G12: 91 | H12: =SUM(H7:H11) -> 544 | I12: 0 | J12: 5 | K12: 23 | L12: 1 | M12: 33 | N12: 22 | O12: 8 | P12: 1
A13: обед
A14: 99 | B14: Салат из свежих помидоров с растительным маслом | D14: 60 | E14: 0.68 | F14: 12.12 | G14: 1.99 | H14: 120.79 | I14: 0.03 | J14: 2.58 | K14: 1032.00 | L14: 1.53 | M14: 14.11 | O14: 19.61 | P14: 0.38
A15: 97 | B15: Жаркое по-домашнему | D15: 200 | E15: 21.63 | F15: 18.48 | G15: 19.30 | H15: 329.86 | I15: 0.14 | J15: 23.12 | K15: 3.26 | L15: 2.53 | M15: 15.10 | O15: 26.93 | P15: 1.09
A16: 65 | B16: Суп крестьянский с крупой | D16: 200 | E16: 2.16 | F16: 5.56 | G16: 12.31 | H16: 93.52 | I16: 0.04 | J16: 6.24 | K16: 192.72 | L16: 1.77 | M16: 7.97 | O16: 10.51 | P16: 0.36
A17: 295 | B17: Компот из сухофруктов | D17: 200 | E17: 2.40 | F17: 0.10 | G17: 41.40 | H17: 171.00 | I17: 0.01 | J17: 4.00 | M17: 6.85 | O17: 3.60 | P17: 0.93
A18: 114 | B18: Хлеб пшеничный | D18: 30 | E18: 2.28 | F18: 0.24 | G18: 14.76 | H18: 70.50 | I18: 0.02 | M18: 4.00 | P18: 0.22
A19: 116 | B19: Хлеб столовый(ржано-пшеничный) | D19: 30 | E19: 1.98 | F19: 0.36 | G19: 10.20 | H19: 54.30 | I19: 0.05 | M19: 10.50 | P19: 1.17
A21: итого за обед | D21: =SUM(D14:D20) -> 720 | E21: 28.12 | F21: 27.77 | G21: 80.09 | H21: =SUM(H14:H19) -> 839.97 | I21: =SUM(I14:I19) -> 0.29 | J21: 35.94 | K21: 1227.98 | L21: 5.83 | M21: 58.53 | N21: 0.00 | O21: 60.65 | P21: 4.15
A27: итого за день | D27: =D12+D21+D26 -> 1220 | E27: =E12+E21+E26 -> 39.42 | F27: =F12+F21+F26 -> 42.20 | G27: 171.58 | H27: =H12+H21 -> 1383.80 | I27: 0.35 | J27: 41.04 | K27: 1250.62 | L27: 7.27 | M27: 91.12 | N27: 22.35 | O27: 68.53 | P27: 5.29

Sheet Лист2

Sheet Лист3
